[Event "*** Titled Tuesday Blitz"]
[Site "Chess.com"]
[Date "2020.11.03"]
[Round "6"]
[White "Eliwood44"]
[Black "Jungle_Jaguar"]
[Result "0-1"]
[WhiteElo "2443"]
[BlackElo "2622"]
[TimeControl "180+1"]
[EndTime "11:10:28 PST"]
[Termination "Jungle_Jaguar won by checkmate"]

1. d4 {[%clk 0:03:00.9]} 1... Nf6 {[%clk 0:03:00]} 2. Nf3 {[%clk 0:02:57.6]}
2... g6 {[%clk 0:03:00.2]} 3. Nc3 {[%clk 0:02:55.2]} 3... d5 {[%clk 0:02:59.6]}
4. Bf4 {[%clk 0:02:54.6]} 4... Bg7 {[%clk 0:02:59.6]} 5. Nb5 {[%clk 0:02:54.8]}
5... Na6 {[%clk 0:02:58.9]} 6. h3 {[%clk 0:02:53.6]} 6... O-O {[%clk 0:02:58.9]}
7. e3 {[%clk 0:02:52.9]} 7... c6 {[%clk 0:02:59.2]} 8. Nc3 {[%clk 0:02:52.5]}
8... Nc7 {[%clk 0:02:59]} 9. Bd3 {[%clk 0:02:51.9]} 9... Ne6 {[%clk 0:02:57.6]}
10. Be5 {[%clk 0:02:51.2]} 10... c5 {[%clk 0:02:49.3]} 11. O-O {[%clk
0:02:49.1]} 11... b6 {[%clk 0:02:43.6]} 12. a4 {[%clk 0:02:48.4]} 12... Bb7
{[%clk 0:02:41.5]} 13. a5 {[%clk 0:02:45.6]} 13... c4 {[%clk 0:02:37.3]} 14. Be2
{[%clk 0:02:43.2]} 14... bxa5 {[%clk 0:02:37.7]} 15. Ra3 {[%clk 0:02:38.1]}
15... Ne4 {[%clk 0:02:04.8]} 16. Nxe4 {[%clk 0:02:31.6]} 16... dxe4 {[%clk
0:02:00.4]} 17. Nd2 {[%clk 0:02:29.7]} 17... Bxe5 {[%clk 0:01:49.8]} 18. dxe5
{[%clk 0:02:30.6]} 18... Qc7 {[%clk 0:01:27.2]} 19. Nxc4 {[%clk 0:02:26.5]}
19... Ba6 {[%clk 0:01:26.7]} 20. Nxa5 {[%clk 0:02:15.7]} 20... Bxe2 {[%clk
0:01:26.3]} 21. Qxe2 {[%clk 0:02:15.7]} 21... Qxe5 {[%clk 0:01:26.9]} 22. c4
{[%clk 0:02:13.7]} 22... Ng5 {[%clk 0:01:14.2]} 23. b4 {[%clk 0:02:09]} 23...
Rac8 {[%clk 0:01:07.9]} 24. b5 {[%clk 0:02:05.9]} 24... Qf6 {[%clk 0:00:45.6]}
25. Nc6 {[%clk 0:02:01.9]} 25... Nf3+ {[%clk 0:00:40.6]} 26. Kh1 {[%clk
0:01:45.5]} 26... Ne5 {[%clk 0:00:29.2]} 27. Nxe5 {[%clk 0:01:35.6]} 27... Qxe5
{[%clk 0:00:30.1]} 28. Rxa7 {[%clk 0:01:34.9]} 28... Qc3 {[%clk 0:00:24.4]} 29.
Ra4 {[%clk 0:01:18.8]} 29... Rfd8 {[%clk 0:00:23.9]} 30. b6 {[%clk 0:01:13.5]}
30... Qb3 {[%clk 0:00:20.4]} 31. Ra7 {[%clk 0:00:46.4]} 31... Qxb6 {[%clk
0:00:19.1]} 32. Rxe7 {[%clk 0:00:43.4]} 32... Qc6 {[%clk 0:00:18.2]} 33. c5
{[%clk 0:00:31.7]} 33... Kf8 {[%clk 0:00:17.2]} 34. Re5 {[%clk 0:00:28.9]} 34...
f6 {[%clk 0:00:17.7]} 35. f4 {[%clk 0:00:19.1]} 35... fxe5 {[%clk 0:00:16.4]}
36. fxe5+ {[%clk 0:00:19.4]} 36... Kg7 {[%clk 0:00:16.4]} 37. Rf6 {[%clk
0:00:13.1]} 37... Qxc5 {[%clk 0:00:15.2]} 38. Qa6 {[%clk 0:00:12.5]} 38... Rd1+
{[%clk 0:00:14.8]} 39. Kh2 {[%clk 0:00:12.1]} 39... Qxe5+ {[%clk 0:00:14.6]} 40.
g3 {[%clk 0:00:13]} 40... Qxf6 {[%clk 0:00:13.7]} 41. Qxc8 {[%clk 0:00:11.3]}
41... Qf2# {[%clk 0:00:13.6]} 0-1

[Event "*** Titled Tuesday Blitz"]
[Site "Chess.com"]
[Date "2020.11.03"]
[Round "6"]
[White "Dr-Bassem"]
[Black "Hikaru"]
[Result "0-1"]
[WhiteElo "2800"]
[BlackElo "3218"]
[TimeControl "180+1"]
[EndTime "11:10:30 PST"]
[Termination "Hikaru won on time"]

1. e4 {[%clk 0:03:00.9]} 1... c5 {[%clk 0:02:57]} 2. Nf3 {[%clk 0:03:01.3]} 2...
d6 {[%clk 0:02:55.6]} 3. g3 {[%clk 0:03:01]} 3... e5 {[%clk 0:02:53.1]} 4. Bg2
{[%clk 0:03:00.6]} 4... g6 {[%clk 0:02:53.5]} 5. O-O {[%clk 0:02:59.7]} 5... Bg7
{[%clk 0:02:54.1]} 6. c3 {[%clk 0:02:59.6]} 6... Nc6 {[%clk 0:02:54.7]} 7. d3
{[%clk 0:02:58.5]} 7... Nge7 {[%clk 0:02:54.4]} 8. a3 {[%clk 0:02:58.9]} 8...
O-O {[%clk 0:02:51.2]} 9. b4 {[%clk 0:02:58.8]} 9... b6 {[%clk 0:02:51.8]} 10.
Nbd2 {[%clk 0:02:58.2]} 10... h6 {[%clk 0:02:50.7]} 11. Bb2 {[%clk 0:02:55.6]}
11... Be6 {[%clk 0:02:50.6]} 12. Rb1 {[%clk 0:02:44.3]} 12... Rc8 {[%clk
0:02:48.8]} 13. Nc4 {[%clk 0:02:21.2]} 13... Qd7 {[%clk 0:02:26.4]} 14. b5
{[%clk 0:02:18.3]} 14... Nd8 {[%clk 0:02:16.3]} 15. a4 {[%clk 0:02:17]} 15...
Nb7 {[%clk 0:02:11.3]} 16. Re1 {[%clk 0:02:01.1]} 16... f5 {[%clk 0:01:46]} 17.
exf5 {[%clk 0:01:58.4]} 17... gxf5 {[%clk 0:01:45.2]} 18. Nh4 {[%clk 0:01:54]}
18... Rcd8 {[%clk 0:01:36.8]} 19. Nd2 {[%clk 0:01:36]} 19... Bf6 {[%clk
0:01:12.4]} 20. c4 {[%clk 0:01:02.4]} 20... Bxh4 {[%clk 0:01:04]} 21. gxh4
{[%clk 0:01:03.3]} 21... Ng6 {[%clk 0:01:04.5]} 22. Qf3 {[%clk 0:00:48.9]} 22...
Rf7 {[%clk 0:01:00.3]} 23. Nf1 {[%clk 0:00:37.7]} 23... Rg7 {[%clk 0:00:56.8]}
24. Ng3 {[%clk 0:00:25.7]} 24... Nxh4 {[%clk 0:00:55.8]} 25. Qxb7 {[%clk
0:00:24.7]} 25... Qxb7 {[%clk 0:00:55.3]} 26. Bxb7 {[%clk 0:00:25.2]} 26... Rxb7
{[%clk 0:00:55.9]} 27. f4 {[%clk 0:00:09.5]} 27... Nf3+ {[%clk 0:00:55.7]} 28.
Kf2 {[%clk 0:00:10.2]} 28... Nxe1 {[%clk 0:00:56.6]} 29. Rxe1 {[%clk 0:00:09.8]}
29... Kf7 {[%clk 0:00:54.1]} 30. Nh5 {[%clk 0:00:07.6]} 30... Kg6 {[%clk
0:00:47.7]} 31. Ng3 {[%clk 0:00:06]} 31... Bf7 {[%clk 0:00:46.4]} 32. Ne2 {[%clk
0:00:02.7]} 32... Kh7 {[%clk 0:00:41.6]} 33. Rg1 {[%clk 0:00:03.1]} 33... Rg8
{[%clk 0:00:38.8]} 34. Rxg8 {[%clk 0:00:03.6]} 34... Kxg8 {[%clk 0:00:38.6]} 35.
fxe5 {[%clk 0:00:04.5]} 35... dxe5 {[%clk 0:00:39.4]} 36. Bxe5 {[%clk
0:00:05.4]} 36... Bh5 {[%clk 0:00:39.3]} 37. Nf4 {[%clk 0:00:05.5]} 37... Bd1
{[%clk 0:00:39.9]} 38. Ke3 {[%clk 0:00:03.7]} 38... Bxa4 {[%clk 0:00:40.5]} 39.
Kd2 {[%clk 0:00:04.1]} 39... Rd7 {[%clk 0:00:33.2]} 40. Nd5 {[%clk 0:00:03]}
40... Kf7 {[%clk 0:00:33.3]} 41. Nc3 {[%clk 0:00:02.9]} 41... Bb3 {[%clk
0:00:33.8]} 42. Ke3 {[%clk 0:00:02.4]} 42... Re7 {[%clk 0:00:29.6]} 43. Kf4
{[%clk 0:00:02.6]} 43... Bc2 {[%clk 0:00:30.3]} 44. Nd5 {[%clk 0:00:02.1]} 44...
Re8 {[%clk 0:00:29.5]} 45. Nc7 {[%clk 0:00:01.5]} 45... Rg8 {[%clk 0:00:25.4]}
0-1

[Event "*** Titled Tuesday Blitz"]
[Site "Chess.com"]
[Date "2020.11.03"]
[Round "6"]
[White "WPWPWP-2015"]
[Black "Witik"]
[Result "1-0"]
[WhiteElo "2495"]
[BlackElo "2620"]
[TimeControl "180+1"]
[EndTime "11:10:30 PST"]
[Termination "WPWPWP-2015 won by resignation"]

1. e4 {[%clk 0:03:00.9]} 1... c5 {[%clk 0:02:59]} 2. Nf3 {[%clk 0:02:59.5]} 2...
Nc6 {[%clk 0:02:59.1]} 3. Bb5 {[%clk 0:02:58.5]} 3... e6 {[%clk 0:02:59.2]} 4.
b3 {[%clk 0:02:55.3]} 4... Nge7 {[%clk 0:02:54.7]} 5. Bb2 {[%clk 0:02:54.4]}
5... a6 {[%clk 0:02:54.3]} 6. Bxc6 {[%clk 0:02:52.8]} 6... Nxc6 {[%clk
0:02:53.6]} 7. O-O {[%clk 0:02:50.6]} 7... b5 {[%clk 0:02:45.8]} 8. c4 {[%clk
0:02:48.8]} 8... Bb7 {[%clk 0:02:37.6]} 9. Na3 {[%clk 0:02:41.8]} 9... Qb6
{[%clk 0:02:22.6]} 10. d3 {[%clk 0:02:36.7]} 10... Be7 {[%clk 0:02:17.7]} 11.
Bxg7 {[%clk 0:02:32.8]} 11... Rg8 {[%clk 0:02:17.4]} 12. Bh6 {[%clk 0:02:30.6]}
12... f5 {[%clk 0:02:14]} 13. Re1 {[%clk 0:02:26.3]} 13... O-O-O {[%clk
0:02:08.6]} 14. cxb5 {[%clk 0:01:50.2]} 14... axb5 {[%clk 0:02:08.3]} 15. Nc2
{[%clk 0:01:49.3]} 15... Rg6 {[%clk 0:01:52.7]} 16. Be3 {[%clk 0:01:43.8]} 16...
Rdg8 {[%clk 0:01:52.1]} 17. g3 {[%clk 0:01:42.2]} 17... Bf6 {[%clk 0:01:30.7]}
18. b4 {[%clk 0:01:35.4]} 18... Bxa1 {[%clk 0:01:18.9]} 19. Bxc5 {[%clk
0:01:29.9]} 19... Qc7 {[%clk 0:01:17.2]} 20. Qxa1 {[%clk 0:01:25.8]} 20... f4
{[%clk 0:01:16.4]} 21. e5 {[%clk 0:01:20.4]} 21... fxg3 {[%clk 0:01:12.5]} 22.
hxg3 {[%clk 0:01:19.7]} 22... h5 {[%clk 0:00:50.4]} 23. a4 {[%clk 0:01:13.2]}
23... h4 {[%clk 0:00:46.5]} 24. Nxh4 {[%clk 0:01:09.1]} 24... Rg4 {[%clk
0:00:45.7]} 25. Kf1 {[%clk 0:01:07.4]} 25... d6 {[%clk 0:00:31]} 26. Bxd6 {[%clk
0:00:48.7]} 26... Qh7 {[%clk 0:00:30.7]} 27. Qc3 {[%clk 0:00:45.3]} 27... Rxh4
{[%clk 0:00:15]} 28. gxh4 {[%clk 0:00:43.9]} 28... Qxh4 {[%clk 0:00:07.8]} 29.
Ke2 {[%clk 0:00:43.6]} 29... Kd7 {[%clk 0:00:06.9]} 30. axb5 {[%clk 0:00:38.4]}
30... Rg2 {[%clk 0:00:06.7]} 31. bxc6+ {[%clk 0:00:31]} 31... Bxc6 {[%clk
0:00:07.6]} 32. Qc5 {[%clk 0:00:27.5]} 32... Qg4+ {[%clk 0:00:06.3]} 33. Kd2
{[%clk 0:00:26.7]} 33... Qf4+ {[%clk 0:00:04.2]} 34. Kc3 {[%clk 0:00:22.1]}
34... Qxf2 {[%clk 0:00:02.4]} 35. Qxf2 {[%clk 0:00:20.5]} 35... Rxf2 {[%clk
0:00:03.3]} 36. Ra1 {[%clk 0:00:19.5]} 36... Bd5 {[%clk 0:00:02.6]} 37. Ra7+
{[%clk 0:00:18.8]} 37... Kc6 {[%clk 0:00:02.5]} 38. Rc7+ {[%clk 0:00:18.2]}
38... Kb6 {[%clk 0:00:02.8]} 39. Bc5+ {[%clk 0:00:16.5]} 39... Kxc7 {[%clk
0:00:02.9]} 40. Bxf2 {[%clk 0:00:16.5]} 1-0

[Event "*** Titled Tuesday Blitz"]
[Site "Chess.com"]
[Date "2020.11.03"]
[Round "6"]
[White "MarkoPe"]
[Black "davigator"]
[Result "0-1"]
[WhiteElo "2224"]
[BlackElo "2369"]
[TimeControl "180+1"]
[EndTime "11:10:30 PST"]
[Termination "davigator won on time"]

1. c4 {[%clk 0:03:00.9]} 1... e5 {[%clk 0:02:58.6]} 2. g3 {[%clk 0:02:58.8]}
2... c6 {[%clk 0:02:58.6]} 3. Bg2 {[%clk 0:02:55.2]} 3... Nf6 {[%clk 0:02:57.1]}
4. d4 {[%clk 0:02:52.6]} 4... Bb4+ {[%clk 0:02:54.6]} 5. Nc3 {[%clk 0:02:51.7]}
5... e4 {[%clk 0:02:46.6]} 6. Bg5 {[%clk 0:02:37.9]} 6... d5 {[%clk 0:02:44.2]}
7. e3 {[%clk 0:02:03.6]} 7... Nbd7 {[%clk 0:02:07.9]} 8. Ne2 {[%clk 0:02:02.9]}
8... h6 {[%clk 0:02:06.1]} 9. Bxf6 {[%clk 0:02:02.6]} 9... Nxf6 {[%clk
0:02:06.2]} 10. Qa4 {[%clk 0:02:01.2]} 10... Bxc3+ {[%clk 0:01:59.7]} 11. Nxc3
{[%clk 0:02:00.5]} 11... O-O {[%clk 0:02:00.4]} 12. O-O {[%clk 0:01:52.5]} 12...
a6 {[%clk 0:02:00.3]} 13. Rac1 {[%clk 0:01:45.3]} 13... Bg4 {[%clk 0:01:58.2]}
14. Qb4 {[%clk 0:01:34.7]} 14... b5 {[%clk 0:01:56]} 15. cxd5 {[%clk 0:01:31.5]}
15... cxd5 {[%clk 0:01:55.6]} 16. a4 {[%clk 0:01:26.6]} 16... bxa4 {[%clk
0:01:44.2]} 17. Nxa4 {[%clk 0:01:26.6]} 17... Be2 {[%clk 0:01:39.9]} 18. Rfe1
{[%clk 0:01:24.6]} 18... Bb5 {[%clk 0:01:38.7]} 19. Nc5 {[%clk 0:01:24.7]} 19...
Rb8 {[%clk 0:01:35]} 20. Qa3 {[%clk 0:01:22.1]} 20... Re8 {[%clk 0:01:23.4]} 21.
Rc3 {[%clk 0:01:18.8]} 21... Bc4 {[%clk 0:01:15.8]} 22. Rec1 {[%clk 0:01:10.3]}
22... Qd6 {[%clk 0:01:12.5]} 23. b3 {[%clk 0:00:45.6]} 23... Bb5 {[%clk
0:01:11.9]} 24. Qa5 {[%clk 0:00:40.1]} 24... Rb6 {[%clk 0:01:04.8]} 25. Na4
{[%clk 0:00:37.1]} 25... Rbb8 {[%clk 0:01:01.7]} 26. Rc7 {[%clk 0:00:34.7]}
26... Qa3 {[%clk 0:00:57.6]} 27. Bf1 {[%clk 0:00:12]} 27... Qxb3 {[%clk
0:00:48.1]} 28. Nc5 {[%clk 0:00:08.8]} 28... Qb2 {[%clk 0:00:43.1]} 29. Nxa6
{[%clk 0:00:08.5]} 29... Bxa6 {[%clk 0:00:28]} 30. Qxa6 {[%clk 0:00:08.8]} 30...
Ra8 {[%clk 0:00:26.4]} 31. Qe2 {[%clk 0:00:08.4]} 31... Qa3 {[%clk 0:00:23.9]}
32. Rb7 {[%clk 0:00:06.9]} 32... Qxc1 {[%clk 0:00:21.7]} 33. Qb5 {[%clk
0:00:04.8]} 33... Ra1 {[%clk 0:00:18.7]} 34. Rb6 {[%clk 0:00:02.8]} 34... Rf8
{[%clk 0:00:17.9]} 35. Rb7 {[%clk 0:00:03]} 35... Ng4 {[%clk 0:00:17.5]} 36. h3
{[%clk 0:00:03.4]} 36... Nf6 {[%clk 0:00:16.5]} 37. g4 {[%clk 0:00:03.3]} 37...
Qd1 {[%clk 0:00:14.5]} 38. Rc7 {[%clk 0:00:02.8]} 38... Rb1 {[%clk 0:00:13.8]}
39. Qa6 {[%clk 0:00:02.1]} 39... Qe1 {[%clk 0:00:12.5]} 0-1

[Event "*** Titled Tuesday Blitz"]
[Site "Chess.com"]
[Date "2020.11.03"]
[Round "6"]
[White "Ranindu2003"]
[Black "ClydeHillKid"]
[Result "1-0"]
[WhiteElo "2572"]
[BlackElo "2353"]
[TimeControl "180+1"]
[EndTime "11:10:32 PST"]
[Termination "Ranindu2003 won on time"]

1. e4 {[%clk 0:03:00.5]} 1... e6 {[%clk 0:03:00.2]} 2. d4 {[%clk 0:03:00.2]}
2... d5 {[%clk 0:03:00.7]} 3. Nd2 {[%clk 0:03:00.8]} 3... Nf6 {[%clk 0:02:58.8]}
4. e5 {[%clk 0:03:00.9]} 4... Nfd7 {[%clk 0:02:58.5]} 5. Bd3 {[%clk 0:03:01.5]}
5... c5 {[%clk 0:02:58.5]} 6. c3 {[%clk 0:03:02.2]} 6... Nc6 {[%clk 0:02:58.8]}
7. Ngf3 {[%clk 0:03:02.9]} 7... Qb6 {[%clk 0:02:58.5]} 8. O-O {[%clk 0:03:02.6]}
8... cxd4 {[%clk 0:02:59.1]} 9. cxd4 {[%clk 0:03:03.5]} 9... Nxd4 {[%clk
0:02:59.6]} 10. Nxd4 {[%clk 0:03:04.1]} 10... Qxd4 {[%clk 0:03:00.5]} 11. Nf3
{[%clk 0:03:04.8]} 11... Qb6 {[%clk 0:03:01.1]} 12. a3 {[%clk 0:03:05.1]} 12...
Nc5 {[%clk 0:02:46]} 13. Bc2 {[%clk 0:03:04.5]} 13... Bd7 {[%clk 0:02:45.6]} 14.
Re1 {[%clk 0:03:03.3]} 14... Be7 {[%clk 0:02:43.6]} 15. b4 {[%clk 0:03:01.8]}
15... Na6 {[%clk 0:02:41.3]} 16. Be3 {[%clk 0:02:59.2]} 16... Qd8 {[%clk
0:02:40]} 17. Nd4 {[%clk 0:02:54.5]} 17... Rc8 {[%clk 0:02:28.5]} 18. Bd3 {[%clk
0:02:52.3]} 18... Nb8 {[%clk 0:02:26.2]} 19. b5 {[%clk 0:02:36.6]} 19... a6
{[%clk 0:02:19.4]} 20. a4 {[%clk 0:02:35.5]} 20... g6 {[%clk 0:02:10.9]} 21. Qe2
{[%clk 0:02:29.3]} 21... O-O {[%clk 0:02:01.9]} 22. Kh1 {[%clk 0:02:17.6]} 22...
Bg5 {[%clk 0:01:39.9]} 23. f4 {[%clk 0:02:16.4]} 23... Bh4 {[%clk 0:01:37.1]}
24. g3 {[%clk 0:02:16.3]} 24... Be7 {[%clk 0:01:36.6]} 25. g4 {[%clk 0:02:16.6]}
25... Bb4 {[%clk 0:01:19.3]} 26. Rf1 {[%clk 0:02:09.6]} 26... Qh4 {[%clk
0:01:06.8]} 27. Rab1 {[%clk 0:01:50.6]} 27... a5 {[%clk 0:01:04.5]} 28. Rg1
{[%clk 0:01:31.2]} 28... Rc7 {[%clk 0:00:38.9]} 29. Nf3 {[%clk 0:01:28.6]} 29...
Qe7 {[%clk 0:00:30.8]} 30. f5 {[%clk 0:01:26.9]} 30... Rfc8 {[%clk 0:00:14.1]}
31. f6 {[%clk 0:01:13.2]} 31... Qf8 {[%clk 0:00:12.9]} 32. Rgd1 {[%clk
0:00:56.5]} 32... Rc3 {[%clk 0:00:11.5]} 33. Qg2 {[%clk 0:00:54.3]} 33... Bc5
{[%clk 0:00:09.4]} 34. Bf4 {[%clk 0:00:49]} 34... Bb6 {[%clk 0:00:08.7]} 35. Qh3
{[%clk 0:00:47.5]} 35... Be8 {[%clk 0:00:05.7]} 36. Ng5 {[%clk 0:00:42.8]} 36...
h6 {[%clk 0:00:04.5]} 37. Nf3 {[%clk 0:00:42.1]} 37... Ra3 {[%clk 0:00:02.8]}
38. Bxh6 {[%clk 0:00:38.2]} 38... Qc5 {[%clk 0:00:02.4]} 39. Bf4 {[%clk
0:00:22.9]} 39... Qc3 {[%clk 0:00:01.4]} 40. Ng5 {[%clk 0:00:19.6]} 40... Qxd3
{[%clk 0:00:01.8]} 41. Qh7+ {[%clk 0:00:19]} 1-0

[Event "*** Titled Tuesday Blitz"]
[Site "Chess.com"]
[Date "2020.11.03"]
[Round "6"]
[White "zmeeed67"]
[Black "Rital44"]
[Result "1-0"]
[WhiteElo "2364"]
[BlackElo "2456"]
[TimeControl "180+1"]
[EndTime "11:10:33 PST"]
[Termination "zmeeed67 won by resignation"]

1. e4 {[%clk 0:03:00.9]} 1... e5 {[%clk 0:00:57.2]} 2. Nf3 {[%clk 0:02:58.4]}
2... Nc6 {[%clk 0:00:50.4]} 3. c3 {[%clk 0:02:58.1]} 3... d5 {[%clk 0:00:49.3]}
4. Qa4 {[%clk 0:02:57.2]} 4... f6 {[%clk 0:00:46.4]} 5. d3 {[%clk 0:02:56.5]}
5... Ne7 {[%clk 0:00:45.4]} 6. Be2 {[%clk 0:02:55.9]} 6... Bd7 {[%clk
0:00:45.8]} 7. Qc2 {[%clk 0:02:53.8]} 7... Be6 {[%clk 0:00:44.8]} 8. b4 {[%clk
0:02:51.9]} 8... g5 {[%clk 0:00:44.1]} 9. a3 {[%clk 0:02:51.7]} 9... g4 {[%clk
0:00:43.9]} 10. Nfd2 {[%clk 0:02:49]} 10... h5 {[%clk 0:00:42.9]} 11. Nf1 {[%clk
0:02:44.2]} 11... Ng6 {[%clk 0:00:41.6]} 12. b5 {[%clk 0:02:31.1]} 12... Nce7
{[%clk 0:00:41.2]} 13. a4 {[%clk 0:02:31]} 13... h4 {[%clk 0:00:40.2]} 14. c4
{[%clk 0:02:22.7]} 14... d4 {[%clk 0:00:34.6]} 15. Na3 {[%clk 0:02:08]} 15...
Nf4 {[%clk 0:00:34.3]} 16. Bxf4 {[%clk 0:02:04.4]} 16... exf4 {[%clk 0:00:35.2]}
17. f3 {[%clk 0:02:02.4]} 17... Ng6 {[%clk 0:00:33.1]} 18. fxg4 {[%clk
0:01:57.3]} 18... h3 {[%clk 0:00:32.4]} 19. g3 {[%clk 0:01:55.3]} 19... Bb4+
{[%clk 0:00:21.5]} 20. Kf2 {[%clk 0:01:42.2]} 20... f3 {[%clk 0:00:16.7]} 21.
Bxf3 {[%clk 0:01:38.3]} 21... Ne5 {[%clk 0:00:17.3]} 22. Qe2 {[%clk 0:01:30.8]}
22... Qd7 {[%clk 0:00:17.4]} 23. Nc2 {[%clk 0:01:27.9]} 23... Bc3 {[%clk
0:00:17.1]} 24. Rb1 {[%clk 0:01:13.9]} 24... O-O-O {[%clk 0:00:16.7]} 25. Nd2
{[%clk 0:01:11.2]} 25... Rdf8 {[%clk 0:00:15.9]} 26. Rhf1 {[%clk 0:01:07.9]}
26... Nxf3 {[%clk 0:00:16]} 27. Nxf3 {[%clk 0:01:04]} 27... Bxg4 {[%clk
0:00:16.6]} 28. Kg1 {[%clk 0:01:00.7]} 28... Rfg8 {[%clk 0:00:14.5]} 29. Qf2
{[%clk 0:00:59.7]} 29... Qd6 {[%clk 0:00:14]} 30. Ncxd4 {[%clk 0:00:53.8]} 30...
Ba5 {[%clk 0:00:10.4]} 31. Nf5 {[%clk 0:00:49.5]} 31... Bxf5 {[%clk 0:00:10.3]}
32. c5 {[%clk 0:00:48.1]} 32... Qxd3 {[%clk 0:00:09.7]} 33. exf5 {[%clk
0:00:47.9]} 33... Qxf5 {[%clk 0:00:09.5]} 34. Kh1 {[%clk 0:00:45]} 34... Bc3
{[%clk 0:00:08.8]} 35. Rbc1 {[%clk 0:00:39]} 35... Be5 {[%clk 0:00:08.5]} 36.
Nxe5 {[%clk 0:00:36.5]} 36... Qxe5 {[%clk 0:00:09.4]} 37. Qxf6 {[%clk
0:00:33.6]} 37... Qe4+ {[%clk 0:00:09.9]} 38. Qf3 {[%clk 0:00:33.2]} 38... Qxa4
{[%clk 0:00:10.4]} 39. b6 {[%clk 0:00:26.8]} 39... axb6 {[%clk 0:00:08.1]} 40.
cxb6 {[%clk 0:00:26.2]} 40... c6 {[%clk 0:00:05.8]} 41. Qf5+ {[%clk 0:00:22.5]}
41... Kd8 {[%clk 0:00:05.6]} 42. Rcd1+ {[%clk 0:00:18.9]} 42... Ke7 {[%clk
0:00:05.2]} 43. Rfe1+ {[%clk 0:00:18.4]} 1-0

[Event "*** Titled Tuesday Blitz"]
[Site "Chess.com"]
[Date "2020.11.03"]
[Round "6"]
[White "fabianvivasz"]
[Black "AntonovaNadezhda"]
[Result "1-0"]
[WhiteElo "2372"]
[BlackElo "2125"]
[TimeControl "180+1"]
[EndTime "11:10:33 PST"]
[Termination "fabianvivasz won by checkmate"]

1. e4 {[%clk 0:03:00.9]} 1... d6 {[%clk 0:02:58.9]} 2. d4 {[%clk 0:02:59.9]}
2... Nf6 {[%clk 0:02:59.3]} 3. Nc3 {[%clk 0:03:00]} 3... e5 {[%clk 0:02:59.7]}
4. Nf3 {[%clk 0:02:57.2]} 4... Nbd7 {[%clk 0:02:58.7]} 5. Bc4 {[%clk 0:02:55.3]}
5... Be7 {[%clk 0:02:58.5]} 6. O-O {[%clk 0:02:28.7]} 6... O-O {[%clk
0:02:57.2]} 7. h3 {[%clk 0:02:25.3]} 7... c6 {[%clk 0:02:56.5]} 8. a4 {[%clk
0:02:20.9]} 8... b6 {[%clk 0:02:56]} 9. Re1 {[%clk 0:02:09.3]} 9... a6 {[%clk
0:02:54.7]} 10. Bb3 {[%clk 0:02:06.9]} 10... Bb7 {[%clk 0:02:54]} 11. dxe5
{[%clk 0:01:29.9]} 11... dxe5 {[%clk 0:02:52.5]} 12. Be3 {[%clk 0:01:25.5]}
12... b5 {[%clk 0:02:49.2]} 13. axb5 {[%clk 0:01:22.1]} 13... axb5 {[%clk
0:02:48.7]} 14. Rxa8 {[%clk 0:01:20.6]} 14... Bxa8 {[%clk 0:02:45.9]} 15. Nh4
{[%clk 0:01:04]} 15... Nxe4 {[%clk 0:02:32.4]} 16. Nxe4 {[%clk 0:00:45.7]} 16...
Bxh4 {[%clk 0:02:31]} 17. Qg4 {[%clk 0:00:39.5]} 17... Kh8 {[%clk 0:02:17]} 18.
Nd6 {[%clk 0:00:26.7]} 18... Kg8 {[%clk 0:01:22.1]} 19. Nxf7 {[%clk 0:00:16.8]}
19... Rxf7 {[%clk 0:01:20]} 20. Rd1 {[%clk 0:00:17.2]} 20... Qe8 {[%clk
0:00:12.2]} 21. Rxd7 {[%clk 0:00:16.8]} 21... Be7 {[%clk 0:00:12.1]} 22. Qe6
{[%clk 0:00:12.5]} 22... c5 {[%clk 0:00:06.7]} 23. Rxe7 {[%clk 0:00:08.2]} 23...
Qxe7 {[%clk 0:00:05.4]} 24. Qxe7 {[%clk 0:00:08]} 24... c4 {[%clk 0:00:06.1]}
25. Qe8+ {[%clk 0:00:07.8]} 25... Rf8 {[%clk 0:00:06.7]} 26. Qe6+ {[%clk
0:00:07.6]} 26... Kh8 {[%clk 0:00:06.2]} 27. Bc5 {[%clk 0:00:06.4]} 27... Rg8
{[%clk 0:00:04.9]} 28. Ba2 {[%clk 0:00:04.9]} 28... Be4 {[%clk 0:00:04.1]} 29.
Qxe5 {[%clk 0:00:03.2]} 29... Bg6 {[%clk 0:00:04]} 30. Bd4 {[%clk 0:00:03.9]}
30... h6 {[%clk 0:00:01.9]} 31. b3 {[%clk 0:00:04.1]} 31... Kh7 {[%clk
0:00:02.5]} 32. bxc4 {[%clk 0:00:03.7]} 32... bxc4 {[%clk 0:00:03.2]} 33. Bxc4
{[%clk 0:00:04.2]} 33... Re8 {[%clk 0:00:03.5]} 34. Qxg7# {[%clk 0:00:03.8]} 1-0

[Event "*** Titled Tuesday Blitz"]
[Site "Chess.com"]
[Date "2020.11.03"]
[Round "6"]
[White "Fischerev7"]
[Black "pavelalexandru07"]
[Result "0-1"]
[WhiteElo "2404"]
[BlackElo "2316"]
[TimeControl "180+1"]
[EndTime "11:10:34 PST"]
[Termination "pavelalexandru07 won by checkmate"]

1. e4 {[%clk 0:02:50.9]} 1... c5 {[%clk 0:02:59.5]} 2. Nf3 {[%clk 0:02:50]} 2...
d6 {[%clk 0:02:59.4]} 3. d4 {[%clk 0:02:28.3]} 3... cxd4 {[%clk 0:02:59.2]} 4.
Nxd4 {[%clk 0:02:29.2]} 4... Nf6 {[%clk 0:02:59.5]} 5. Nc3 {[%clk 0:02:29.5]}
5... a6 {[%clk 0:03:00]} 6. Be3 {[%clk 0:02:29.7]} 6... e5 {[%clk 0:02:59.2]} 7.
Nb3 {[%clk 0:02:30]} 7... Be6 {[%clk 0:02:58.7]} 8. f3 {[%clk 0:02:30.3]} 8...
h5 {[%clk 0:02:59]} 9. Qd2 {[%clk 0:02:30]} 9... Nbd7 {[%clk 0:02:59.3]} 10.
O-O-O {[%clk 0:02:30.6]} 10... Be7 {[%clk 0:02:59.8]} 11. Kb1 {[%clk 0:02:30.8]}
11... Rc8 {[%clk 0:02:58.8]} 12. Nd5 {[%clk 0:02:26]} 12... Bxd5 {[%clk
0:02:57.9]} 13. exd5 {[%clk 0:02:26.9]} 13... Nb6 {[%clk 0:02:58.2]} 14. Bxb6
{[%clk 0:02:08.4]} 14... Qxb6 {[%clk 0:02:57.9]} 15. Bd3 {[%clk 0:02:08.1]}
15... g6 {[%clk 0:02:37.1]} 16. Be4 {[%clk 0:02:00.5]} 16... Nd7 {[%clk
0:02:24.7]} 17. f4 {[%clk 0:01:57.9]} 17... f5 {[%clk 0:02:24]} 18. Bf3 {[%clk
0:01:53.5]} 18... e4 {[%clk 0:02:12.3]} 19. Be2 {[%clk 0:01:53]} 19... Bf6
{[%clk 0:02:12.1]} 20. h3 {[%clk 0:01:27.5]} 20... h4 {[%clk 0:02:11.3]} 21.
Rhg1 {[%clk 0:01:27.4]} 21... Kf7 {[%clk 0:01:27.7]} 22. g3 {[%clk 0:01:26.4]}
22... hxg3 {[%clk 0:01:27.6]} 23. Rxg3 {[%clk 0:01:27.3]} 23... Rh4 {[%clk
0:01:25.8]} 24. Rdg1 {[%clk 0:01:24.6]} 24... Rg8 {[%clk 0:01:20.3]} 25. c3
{[%clk 0:01:01.8]} 25... a5 {[%clk 0:01:19.3]} 26. Nc1 {[%clk 0:00:55.5]} 26...
Rxh3 {[%clk 0:01:04.7]} 27. R3g2 {[%clk 0:00:34.1]} 27... Bxc3 {[%clk
0:00:52.8]} 28. Qc2 {[%clk 0:00:31.7]} 28... Bf6 {[%clk 0:00:51.6]} 29. Nb3
{[%clk 0:00:25.4]} 29... a4 {[%clk 0:00:51.3]} 30. Nd2 {[%clk 0:00:25]} 30... a3
{[%clk 0:00:46.3]} 31. Nc4 {[%clk 0:00:24.4]} 31... Qc5 {[%clk 0:00:46.2]} 32.
b3 {[%clk 0:00:18.2]} 32... b5 {[%clk 0:00:44.6]} 33. Na5 {[%clk 0:00:15.3]}
33... Rc3 {[%clk 0:00:33.8]} 34. Qd2 {[%clk 0:00:15.1]} 34... e3 {[%clk
0:00:30]} 35. Qd1 {[%clk 0:00:13.4]} 35... Nb6 {[%clk 0:00:25.2]} 36. Bf3 {[%clk
0:00:11.5]} 36... Na4 {[%clk 0:00:12.9]} 37. Nb7 {[%clk 0:00:09.7]} 37... Qb6
{[%clk 0:00:12.2]} 38. bxa4 {[%clk 0:00:08.7]} 38... bxa4+ {[%clk 0:00:12.2]}
39. Ka1 {[%clk 0:00:02.8]} 39... Rc1# {[%clk 0:00:12.1]} 0-1